bitfinex/quotes_ETHUSD_20240715
["timestamp","ask_amount","ask_price","bid_price","bid_amount"]
[1721052808885,2.96344984,3360.3,3359.8,2.97633]
[1721052809065,0.62194984,3360.2,3359.6,2.97653]
[1721052809270,0.62194984,3360.2,3359.7,3.0]
[1721052809572,0.55,3360.1,3359.7,3.0]
[1721052809737,0.55,3360.1,3359.6,3.0]
[1721052809953,0.55,3360.2,3359.6,3.0]
[1721052810662,0.62194984,3360.1,3359.5,2.97662]
[1721052810862,0.62194984,3360.1,3359.3,2.97674]
[1721052810863,0.55,3360.0,3359.3,2.97674]
[1721052811112,1.17194984,3360.0,3359.4,3.0]
[1721052811310,1.17194984,3360.0,3359.4,5.97671]
[1721052811473,0.55,3360.0,3359.5,2.9766]
[1721052811680,0.55,3360.0,3359.4,5.97671]
[1721052811988,2.97635,3359.9,3358.3,7.28]
[1721052812183,2.97635,3359.9,3359.1,2.97692]
[1721052812184,0.62194984,3359.9,3359.1,2.97692]
[1721052812493,0.55,3359.8,3359.2,2.97688]
[1721052812699,0.62194984,3360.0,3359.4,2.9767]
[1721052812989,1.66118332,3360.2,3359.5,2.97654]
[1721052813189,2.96286686,3360.3,3359.7,2.97642]
[1721052813417,2.96286686,3360.3,3359.8,2.97635]
[1721052813418,2.3415,3360.3,3359.8,2.97635]
[1721052814158,2.96286686,3360.3,3359.8,2.97635]
[1721052814381,2.3415,3360.3,3359.8,2.97635]
[1721052816272,1.01987743,3360.6,3360.1,5.95204]
[1721052817320,7.4,3360.7,3360.1,5.95204]
[1721052818184,7.4,3360.7,3360.2,2.97598]
[1721052818389,7.4,3360.7,3360.3,2.9759]
[1721052818583,7.4,3360.7,3360.4,2.97575]
[1721052819540,12.66872,3361.2,3360.4,2.97575]
[1721052819833,5.33222869,3361.1,3360.4,2.97575]
[1721052821515,2.35700869,3361.1,3360.5,2.97566]
[1721052821722,0.55,3361.1,3360.5,2.97566]
[1721052821921,0.55,3361.1,3360.6,2.97564]
[1721052823552,0.55,3361.1,3359.7,2.97642]
[1721052823846,0.55,3361.1,3360.1,2.97609]
[1721052823847,2.9755,3360.8,3360.1,2.97609]
[1721052824050,0.55,3360.7,3360.1,2.97609]
[1721052824411,3.557233,3361.0,3360.1,2.97609]
[1721052824611,2.3803,3360.8,3360.1,2.97609]
[1721052824854,0.55,3360.7,3360.1,2.97609]
[1721052825218,0.55,3360.7,3359.9,2.97621]
[1721052825219,0.62439773,3360.7,3359.9,2.97621]
[1721052825415,3.59996773,3360.7,3359.9,2.97621]
[1721052825617,2.97672,3359.4,3358.5,2.97749]
[1721052825815,3.512572,3359.3,3358.5,2.9775]
[1721052826051,3.512572,3359.3,3358.6,2.97741]
[1721052826052,4.062572,3359.3,3358.6,2.97741]
[1721052826211,0.07443103,3359.2,3358.6,2.97741]
[1721052826412,3.05133103,3359.2,3358.4,2.97755]
[1721052826617,2.977,3359.1,3358.4,2.97755]
[1721052827050,0.07443104,3359.0,3358.4,2.97755]
[1721052827225,0.07443104,3359.0,3358.1,2.97785]
[1721052827226,3.52717,3358.9,3358.2,2.97776]
[1721052828719,0.55,3358.9,3358.3,2.97765]
[1721052828940,0.55,3359.0,3358.4,2.97759]
[1721052829263,3.5269,3359.2,3358.5,2.9775]
[1721052831329,4.2929191,3359.2,3358.5,2.9775]
[1721052831932,1.3160191,3359.2,3358.5,2.9775]
[1721052833852,1.3160191,3359.2,3358.6,2.97742]
[1721052835451,1.93727207,3359.2,3358.6,2.97742]
[1721052835646,3.05143185,3359.1,3358.3,2.97765]
[1721052835856,2.3112,3358.9,3358.1,2.97787]
[1721052836057,0.62443939,3358.8,3358.2,3.0]
[1721052836457,0.07443937,3358.7,3358.2,3.0]
[1721052836853,2.97744,3358.6,3357.8,2.97813]
[1721052837158,2.97744,3358.6,3357.9,3.0]
[1721052837159,0.62444626,3358.5,3357.9,3.0]
[1721052838160,3.52752,3358.5,3357.9,3.0]
[1721052838331,2.97761,3358.4,3357.8,3.0]
[1721052838533,0.55,3358.3,3357.8,3.0]
[1721052840259,0.95115832,3358.6,3357.8,5.97811]
[1721052840465,0.55,3358.5,3357.8,3.0]
[1721052840764,0.535702,3359.3,3357.6,2.3397]
[1721052840765,7.4,3359.3,3358.7,2.97732]
[1721052840935,7.4,3359.3,3357.9,5.58403]
[1721052840936,7.4,3359.3,3359.1,2.97692]
[1721052841133,7.4,3359.3,3358.9,2.97716]
[1721052841134,2.4789,3359.4,3358.9,2.97716]
[1721052841444,3.59833512,3359.3,3358.3,3.0]
[1721052841648,2.78893951,3359.4,3358.6,2.97741]
[1721052841649,0.62149512,3359.2,3358.6,2.97741]
[1721052841965,2.97681,3359.3,3358.6,2.97741]
[1721052842181,3.59830512,3359.3,3358.6,2.97741]
[1721052842665,0.55,3359.2,3358.6,2.97741]
[1721052843280,2.97711,3359.0,3358.2,2.97776]
[1721052843571,2.97711,3359.0,3358.3,2.97767]
[1721052843572,0.55,3358.9,3358.3,2.97767]
[1721052844342,0.55,3358.9,3358.2,2.97776]
[1721052844545,0.62178688,3359.0,3358.5,2.97751]
[1721052844742,1.35964205,3359.0,3358.5,2.97751]
[1721052845153,0.62178688,3359.0,3358.5,2.97751]
[1721052845368,0.62178688,3359.2,3358.8,2.97724]
[1721052845590,0.62178688,3359.3,3358.9,2.97716]
[1721052845787,3.10068688,3359.4,3358.9,2.97716]
[1721052845956,3.10068688,3359.4,3358.4,2.97757]
[1721052845957,0.62177258,3359.2,3358.4,2.97757]
[1721052846289,0.62177258,3359.1,3358.7,2.97726]
[1721052846448,0.62177258,3359.2,3358.7,2.97726]
[1721052846651,0.62177258,3359.2,3358.8,2.97724]
[1721052846831,0.62177258,3359.3,3358.8,2.97724]
[1721052847031,0.62177258,3359.3,3358.9,2.97714]
[1721052847264,3.10067258,3359.4,3358.9,2.97714]
[1721052847946,0.62177258,3359.3,3358.9,2.97714]
[1721052848141,0.62177258,3359.3,3358.7,2.97726]
[1721052848348,0.62177258,3359.2,3358.5,5.95493]
[1721052848651,1.17177258,3359.1,3358.5,2.97744]
[1721052848852,0.55,3359.1,3358.6,2.97741]
[1721052849061,1.17177258,3359.1,3358.6,2.97741]
[1721052849580,1.17177258,3359.1,3358.3,2.97765]
[1721052849581,0.62177258,3359.0,3358.4,2.97754]
[1721052849786,0.62177258,3359.0,3358.6,0.148]
[1721052849944,2.15201196,3359.1,3358.6,0.148]
[1721052850404,1.53023938,3359.1,3358.6,0.148]
[1721052850607,2.1521032,3359.1,3358.6,0.148]
[1721052850748,1.53023938,3359.1,3358.6,0.148]
[1721052851079,0.62186382,3359.0,3358.6,0.148]
[1721052851980,2.97717,3358.9,3358.6,0.148]
[1721052852292,0.62186382,3358.7,3358.6,0.148]
[1721052852776,2.97734,3358.7,3358.6,0.148]
[1721052852981,4.14920419,3358.7,3358.6,0.148]
[1721052853280,4.22364864,3358.7,3358.6,0.148]
[1721052853507,4.87701692,3358.7,3358.6,0.148]
[1721052853651,8.7872331,3358.7,3358.6,0.148]
[1721052853850,12.97145195,3358.7,3358.6,0.148]
[1721052854481,10.42872329,3358.7,3358.6,0.148]
[1721052854783,11.72762297,3358.7,3358.6,0.148]
[1721052854987,10.35427884,3358.7,3358.6,0.148]
[1721052856381,11.17945456,3358.7,3358.6,0.148]
[1721052856586,8.20211456,3358.7,3358.6,0.148]
[1721052856972,7.26947247,3358.7,3358.6,0.148]
[1721052857375,8.20211456,3358.7,3358.6,0.148]
[1721052858290,7.37692319,3358.7,3358.6,0.148]
[1721052858783,7.26947247,3358.7,3358.6,0.148]
[1721052859584,8.20182986,3358.7,3358.6,0.148]
[1721052859797,12.89707511,3358.7,3358.6,0.148]
[1721052859962,12.89706357,3358.7,3358.6,0.148]
[1721052860160,11.65322866,3358.7,3358.6,0.148]
[1721052860491,10.35427749,3358.7,3358.6,0.148]
[1721052861084,10.40592108,3358.7,3358.6,0.148]
[1721052861890,11.23077309,3358.7,3358.6,0.148]
[1721052863205,11.2308658,3358.7,3358.6,0.148]
[1721052863370,11.7048668,3358.7,3358.6,0.148]
[1721052863711,10.40592402,3358.7,3358.6,0.148]
[1721052864057,6.42839956,3358.7,3358.6,0.148]
[1721052864260,0.98415956,3358.7,3358.6,0.148]
[1721052864689,3.02898359,3358.7,3358.6,0.148]
[1721052865280,3.57898359,3358.7,3358.6,0.148]
[1721052865592,1.53415956,3358.7,3358.6,0.148]
[1721052866370,2.00796975,3358.7,3358.6,0.148]
[1721052866590,0.60164359,3358.7,3358.6,0.148]
[1721052867303,1.22390987,3358.7,3358.6,0.148]
[1721052867463,0.60164359,3358.7,3358.6,0.148]
[1721052867665,1.53508099,3358.7,3358.6,0.148]
[1721052867959,0.55,3358.7,3358.6,0.148]
[1721052868176,0.9334374,3358.8,3358.6,0.148]
[1721052868477,2.23217988,3358.7,3358.6,0.148]
[1721052869596,2.65325537,3358.7,3358.6,0.148]
[1721052870463,2.96498547,3358.7,3358.6,3.12543]
[1721052870663,2.65433528,3358.7,3358.6,3.12543]
[1721052870885,1.40633497,3358.7,3358.6,3.12543]
[1721052871085,2.23468084,3358.7,3358.6,3.12543]
[1721052871393,1.24800031,3358.8,3358.7,2.97734]
[1721052871767,2.65429899,3358.8,3358.7,2.97734]
[1721052872296,2.65522682,3358.8,3358.7,2.97734]
[1721052872706,2.65523355,3358.8,3358.7,2.97734]
[1721052873482,2.235205,3358.8,3358.7,2.97734]
[1721052873702,2.23518907,3358.8,3358.7,2.97734]
[1721052873890,1.24892814,3358.9,3358.8,2.97725]
[1721052873891,0.9365837,3358.9,3358.8,2.97725]
[1721052874236,1.40613838,3358.9,3358.8,2.97725]
[1721052874508,2.65506652,3358.9,3358.7,2.97734]
[1721052874681,10.3767,3359.5,3358.7,2.97734]
[1721052874682,2.655116,3358.8,3358.7,2.97734]
[1721052875496,2.23503282,3358.8,3358.7,2.97734]
[1721052875926,0.93653148,3358.8,3358.7,2.97734]
[1721052876099,2.23507534,3358.8,3358.6,3.12541]
[1721052876305,1.40629098,3358.7,3358.6,0.148]
[1721052876912,2.65515309,3358.7,3358.6,0.148]
[1721052878314,6.66382797,3358.7,3358.6,0.148]
[1721052878610,5.35747057,3358.7,3358.6,0.148]
[1721052879015,2.38013057,3358.7,3358.6,0.148]
[1721052879223,1.40642377,3358.7,3358.6,0.148]
[1721052879388,2.85990456,3358.7,3358.6,0.148]
[1721052879593,2.9675669,3358.7,3358.6,0.148]
[1721052879813,3.48409159,3358.7,3358.6,3.12543]
[1721052880114,2.23524482,3358.7,3358.6,3.12543]
[1721052880317,1.2986383,3358.7,3358.6,3.12543]
[1721052880516,2.65518792,3358.7,3358.6,3.12543]
[1721052881408,1.40633312,3358.7,3358.6,3.12543]
[1721052882098,2.23527112,3358.7,3358.6,3.12543]
[1721052882294,0.93663282,3358.7,3358.6,3.12543]
[1721052882820,0.93663282,3358.9,3358.8,2.97725]
[1721052883022,0.93663282,3359.0,3358.9,2.97716]
[1721052883404,0.93663282,3359.1,3359.0,2.97707]
[1721052883727,2.65483131,3359.1,3359.0,2.97707]
[1721052884102,2.65483131,3359.1,3358.6,3.1254]
[1721052884310,0.93638224,3358.8,3358.7,2.97734]
[1721052884627,0.93638224,3358.8,3358.6,3.1254]
[1721052884927,0.62424186,3358.7,3358.6,3.1254]
[1721052885138,0.93638224,3358.8,3358.6,6.1254]
[1721052885322,0.93638224,3358.8,3358.6,3.1254]
[1721052885323,2.2349637,3358.7,3358.6,3.1254]
[1721052885633,2.6551394,3358.7,3358.6,3.1254]
[1721052886412,1.4062846,3358.7,3358.6,3.1254]
[1721052887047,2.65495266,3358.7,3358.6,3.1254]
[1721052887831,2.65495266,3358.7,3358.6,0.148]
[1721052888030,1.4062846,3358.7,3358.6,0.148]
[1721052888258,2.65499015,3358.7,3358.6,0.148]
[1721052888804,2.65504109,3358.7,3358.6,0.148]
[1721052889244,2.65504109,3358.7,3358.6,3.12543]
[1721052889751,1.40633554,3358.7,3358.6,0.148]
[1721052890731,2.6550804,3358.7,3358.6,0.148]
[1721052890943,3.68656042,3358.7,3358.6,0.148]
[1721052891324,2.96724721,3358.7,3358.6,0.148]
[1721052891747,2.65508438,3358.7,3358.6,0.148]
[1721052892275,2.96726648,3358.7,3358.6,0.148]
[1721052892434,2.96733842,3358.7,3358.6,0.148]
[1721052892771,2.96744994,3358.7,3358.6,0.148]
[1721052893471,1.40639575,3358.7,3358.6,0.148]
[1721052895072,11.72092388,3358.7,3358.6,0.148]
[1721052895309,10.42222567,3358.7,3358.6,0.148]
[1721052895473,12.06925662,3358.7,3358.6,0.148]
[1721052897695,11.72101061,3358.7,3358.6,0.148]
[1721052897861,11.29716056,3358.7,3358.6,0.148]
[1721052898499,10.42221368,3358.7,3358.6,0.148]
[1721052898683,11.29714924,3358.7,3358.6,0.148]
[1721052899605,11.72101401,3358.7,3358.6,0.148]
[1721052900109,13.59449106,3358.7,3358.6,0.148]
[1721052900615,5.34246924,3358.7,3358.6,0.148]
[1721052900816,4.41907116,3358.7,3358.6,0.148]
[1721052901296,1.4064126,3358.7,3358.6,0.148]
[1721052901548,1.29871506,3358.7,3358.6,0.148]
[1721052901652,2.96763369,3358.7,3358.6,0.148]
[1721052902256,2.96777224,3358.7,3358.6,0.148]
[1721052902497,2.18824837,3358.7,3358.6,0.148]
[1721052903216,2.61215548,3358.7,3358.6,0.148]
[1721052903515,8.48949548,3358.7,3358.6,0.148]
[1721052904192,8.48955634,3358.7,3358.6,0.148]
[1721052904560,7.19078042,3358.7,3358.6,0.148]
[1721052904873,8.06564743,3358.7,3358.6,0.148]
[1721052905070,8.48959111,3358.7,3358.6,0.148]
[1721052905273,10.36357971,3358.7,3358.6,0.148]
[1721052906074,10.36373072,3358.7,3358.6,0.148]
[1721052906394,13.34107072,3358.7,3358.6,0.148]
[1721052906574,16.97901018,3358.7,3358.6,0.148]
[1721052907168,14.79251941,3358.7,3358.6,0.148]
[1721052907363,12.67144407,3358.7,3358.6,0.148]
[1721052907597,11.81544343,3358.7,3358.6,0.13251856]
[1721052907797,14.00215444,3358.7,3358.6,0.13251856]
[1721052907983,11.81544343,3358.7,3358.6,0.13251856]
[1721052909170,14.00199078,3358.7,3358.6,0.13251856]
[1721052909499,2.97764,3358.4,3357.7,2.97822]
[1721052909699,0.93707111,3357.8,3357.4,2.97848]
[1721052910003,0.62471607,3357.6,3357.5,2.97838]
[1721052910383,0.62471607,3357.6,3357.5,8.30908]
[1721052910579,0.93707111,3357.8,3357.7,5.95644]
[1721052910580,0.62471607,3357.8,3357.7,5.95644]
[1721052910779,0.62471607,3357.9,3357.8,2.97814]
[1721052910979,0.93707111,3358.0,3357.9,2.97805]
[1721052911302,0.93707111,3358.0,3357.8,2.97814]
[1721052911303,0.93707111,3358.1,3358.0,2.97796]
[1721052911499,2.23583012,3358.1,3358.0,2.97796]
[1721052911678,0.93707111,3358.1,3358.0,2.97796]
[1721052911883,0.93707111,3358.2,3358.1,2.97787]
[1721052912400,2.23578915,3358.2,3358.1,2.97787]
[1721052912825,0.62456688,3358.3,3358.2,8.93334]
[1721052913009,1.92586153,3359.1,3358.1,2.3378]
[1721052913010,0.62456688,3358.7,3358.4,2.9776]
[1721052913305,0.62456688,3358.8,3358.7,5.95468]
[1721052913652,1.24942815,3359.2,3359.0,2.97707]
[1721052913653,1.66806333,3359.2,3359.0,2.97707]
[1721052913833,1.40550521,3359.1,3359.0,2.97707]
[1721052914386,2.65426526,3359.1,3359.0,2.97707]
[1721052914596,1.40550521,3359.1,3359.0,2.97707]
[1721052915517,1.40550521,3359.1,3358.8,2.97725]
[1721052915723,2.54715316,3359.0,3358.5,3.0]
[1721052915877,2.54715316,3359.0,3358.6,2.97736]
[1721052915878,0.93652309,3358.7,3358.6,2.97736]
[1721052916077,2.23507384,3358.7,3358.6,3.0]
[1721052916289,2.23507384,3358.7,3358.5,3.0]
[1721052916497,0.93652309,3358.7,3358.5,3.0]
[1721052916708,1.29856662,3358.6,3358.1,2.3378]
[1721052916934,0.62438872,3358.3,3358.1,2.3378]
[1721052917132,0.39525417,3358.9,3358.3,2.97769]
[1721052917436,0.93657863,3358.5,3358.3,2.97769]
[1721052917616,1.29866014,3358.4,3358.3,2.97769]
[1721052917803,2.23529845,3358.4,3358.3,2.97769]
[1721052918132,2.65461104,3358.4,3358.1,2.9778]
[1721052918335,0.93669894,3358.3,3358.2,5.97778]
[1721052918530,0.93669894,3358.3,3357.7,5.3718]
[1721052918531,0.93669894,3358.4,3357.9,2.97801]
[1721052918725,2.2354229,3358.3,3358.1,2.97785]
[1721052918939,0.93669894,3358.3,3358.1,2.97785]
[1721052919548,0.93669894,3358.3,3358.1,2.9778]
[1721052919746,2.23543597,3358.2,3358.1,2.9778]
[1721052919964,0.93669894,3358.2,3358.1,2.9778]
[1721052921610,0.93669894,3358.3,3358.2,2.97778]
[1721052921852,1.2487715,3358.4,3358.2,2.97778]
[1721052921853,0.93669894,3358.4,3358.3,2.97769]
[1721052922167,0.62444556,3358.6,3358.3,8.36619]
[1721052922315,0.62444556,3358.7,3358.6,5.95486]
[1721052922652,0.93669894,3358.8,3358.3,8.36619]
[1721052922653,0.62444556,3358.8,3358.7,2.97734]
[1721052922872,1.56114108,3359.3,3358.9,2.97716]
[1721052922873,0.62444556,3359.2,3358.9,2.97716]
[1721052923054,1.56114108,3359.6,3358.9,2.97716]
[1721052923055,0.62444556,3359.4,3359.1,2.499]
[1721052923264,7.4,3360.0,3359.5,2.97663]
[1721052923265,0.62444556,3360.0,3359.5,2.97663]
[1721052923407,0.62444556,3360.1,3359.6,2.97652]
[1721052923609,0.62444556,3360.1,3360.0,5.95238]
[1721052923908,0.62444556,3360.1,3359.6,5.97652]
[1721052923909,0.93669894,3360.2,3360.1,5.9522]
[1721052924169,0.93669894,3360.3,3360.2,2.97601]
[1721052924311,0.62328945,3360.3,3360.2,2.97601]
[1721052924728,0.62328945,3360.3,3360.2,5.95202]
[1721052924969,1.2487715,3360.6,3360.4,2.97583]
[1721052924970,0.93669894,3360.6,3360.4,2.97583]
[1721052925253,1.2487715,3360.8,3360.4,2.97583]
[1721052925254,0.93669894,3360.5,3360.4,2.97583]
[1721052925494,0.93669894,3360.6,3360.2,2.97601]
[1721052925661,0.93438679,3360.4,3360.2,2.97601]
[1721052926002,0.93438679,3360.4,3360.3,2.97592]
[1721052926351,0.93438679,3360.6,3360.4,2.97583]
[1721052926656,0.93438679,3360.6,3360.0,5.97617]
[1721052926657,0.93383103,3360.5,3360.0,5.97617]
[1721052926842,1.17258072,3360.4,3360.0,2.97617]
[1721052927191,0.55,3360.4,3360.1,3.0]
[1721052927738,1.17258072,3360.5,3360.0,2.97617]
[1721052928144,1.17258072,3360.5,3360.1,2.97609]
[1721052928375,0.87204464,3360.5,3359.9,2.97622]
[1721052928561,0.62258072,3360.3,3360.0,3.0]
[1721052928870,0.62258072,3360.2,3359.7,3.0]
[1721052929070,0.62258072,3360.3,3359.9,2.97626]
[1721052929273,0.62258072,3360.3,3360.0,3.0]
[1721052929574,0.47875991,3360.3,3360.0,3.0]
[1721052930277,0.47875991,3360.3,3360.0,5.97617]
[1721052930448,1.49462536,3360.5,3360.1,2.97608]
[1721052931260,1.49462536,3360.5,3360.0,3.0]
[1721052931462,1.49462536,3360.5,3360.0,5.97618]
[1721052931880,1.49462536,3360.5,3360.1,2.97606]
[1721052932586,0.87204464,3360.5,3360.1,2.97606]
[1721052932793,1.49462536,3360.5,3360.1,2.97606]
[1721052933151,0.87204464,3360.5,3360.1,2.97606]
[1721052933351,0.32204464,3360.5,3360.2,2.97592]
[1721052933547,0.2992491,3360.4,3360.2,2.97592]
[1721052934097,0.2992491,3360.4,3360.2,2.97594]
[1721052934804,0.2992491,3360.4,3360.3,2.97592]
[1721052935113,1.11403463,3360.6,3360.3,2.97592]
[1721052935398,0.62258072,3360.8,3360.5,2.97574]
[1721052935608,7.4,3360.9,3360.5,2.97574]
[1721052935814,0.55,3360.8,3360.5,2.97574]
[1721052936570,0.62258072,3361.2,3360.3,2.97587]
[1721052936786,2.3878,3361.3,3360.9,2.97533]
[1721052936991,1.04622338,3361.2,3360.9,2.97533]
[1721052937731,7.4,3361.4,3361.2,2.9751]
[1721052938002,8.02258072,3361.9,3361.3,2.97503]
[1721052938414,7.4,3361.9,3361.3,2.97503]
[1721052939190,10.37456,3361.9,3361.1,2.97521]
[1721052939392,3.52462,3361.8,3361.1,2.97521]
[1721052939620,1.45216907,3361.7,3361.1,2.97521]
[1721052939811,0.55,3361.6,3361.1,2.97521]
[1721052940120,0.62437488,3361.6,3360.9,2.97535]
[1721052940323,0.62437488,3361.6,3360.7,2.97553]
[1721052940324,2.97486,3361.5,3361.0,3.0]
[1721052940623,1.34518391,3361.4,3360.9,3.0]
[1721052941800,1.45216907,3361.7,3361.2,2.9751]
[1721052942001,0.55,3361.6,3361.2,2.9751]
[1721052943308,2.3719,3362.1,3361.4,2.97487]
[1721052943497,2.3719,3362.1,3361.6,2.97475]
[1721052944027,2.3719,3362.1,3361.4,5.94975]
[1721052944228,2.3719,3362.1,3360.9,5.9753]
[1721052944229,4.26171721,3362.0,3361.1,2.97516]
[1721052944448,2.97458,3361.9,3361.1,2.97516]
[1721052944652,2.97483,3361.6,3360.9,3.0]
[1721052944952,2.97488,3361.5,3360.8,3.0]
[1721052945239,0.594971,3361.4,3360.8,5.97545]
[1721052945397,0.594971,3361.4,3360.8,3.0]
[1721052945398,3.0019,3361.3,3360.8,3.0]
[1721052946502,3.0019,3361.3,3360.8,5.97547]
[1721052946898,3.0019,3361.3,3360.8,3.0]
[1721052947097,3.04951538,3361.2,3360.3,2.97585]
[1721052947332,0.55,3361.1,3360.4,2.97581]
[1721052947502,0.07438665,3361.0,3360.4,2.97581]
[1721052947834,2.9753,3361.0,3360.3,2.97585]
[1721052948025,0.55,3360.9,3360.3,2.97585]
[1721052948331,1.26576131,3360.9,3360.3,2.97585]
[1721052948496,1.26576131,3360.9,3360.4,3.0]
[1721052949839,0.55,3360.9,3360.4,3.0]
[1721052950134,2.97536,3361.0,3360.4,3.0]
[1721052950484,0.55,3360.9,3360.4,3.0]
[1721052951831,0.6571831,3361.2,3360.6,2.97564]
[1721052952129,1.15842131,3361.1,3360.6,2.97564]
[1721052952298,1.15842131,3361.1,3360.4,5.97576]
[1721052952498,2.97539,3360.9,3360.4,3.0]
[1721052952727,0.55,3360.8,3360.2,5.97592]
[1721052953299,0.55,3360.8,3360.2,3.0]
[1721052953300,4.23642613,3360.8,3360.2,3.0]
[1721052953505,4.23642613,3360.8,3360.1,3.0]
[1721052953907,7.21198613,3360.8,3360.1,3.0]
[1721052954130,7.21198613,3360.8,3360.0,2.97616]
[1721052954131,2.97571,3360.6,3359.7,2.97642]
[1721052954353,3.60015121,3360.5,3359.7,2.97636]
[1721052954564,0.90020584,3360.4,3359.7,2.97636]
[1721052954768,0.07440226,3360.3,3359.7,2.97636]
[1721052954982,0.55,3360.2,3359.3,2.97679]
[1721052955276,2.9761,3360.1,3359.4,2.97671]
[1721052955497,2.9761,3360.1,3358.9,2.97712]
[1721052955498,2.97628,3359.9,3358.9,2.97712]
[1721052955681,2.97628,3359.9,3359.2,2.97683]
[1721052955895,0.55,3360.0,3359.3,2.97676]
[1721052956187,1.17631106,3360.0,3359.3,2.97676]
[1721052956538,4.15250106,3360.0,3359.3,2.97676]
[1721052957039,4.15250106,3360.0,3359.4,3.0]
[1721052957970,5.95329424,3360.3,3359.4,5.97664]
[1721052958183,0.55,3360.2,3359.6,2.97647]
[1721052958748,0.55,3360.2,3359.7,2.97645]
[1721052958962,13.33751424,3360.7,3359.9,2.97619]
[1721052959176,0.62094424,3360.6,3360.0,2.97617]
[1721052959371,3.27241636,3360.7,3360.0,2.97617]
[1721052959372,2.341,3360.7,3360.0,2.97617]
[1721052959554,3.02788806,3360.7,3360.0,2.97617]
[1721052960384,0.55,3360.6,3360.0,2.97617]
[1721052961243,0.55,3360.6,3360.1,2.97608]
[1721052961445,3.52557,3360.7,3360.1,2.97608]
[1721052962156,0.6211357,3360.9,3360.1,2.97608]
[1721052962497,0.6211357,3360.9,3360.3,2.97583]
[1721052962699,2.97557,3360.7,3360.0,2.97617]
[1721052963256,0.69553569,3360.6,3359.9,2.97624]
[1721052963482,1.1711357,3360.5,3359.9,2.97624]
[1721052964193,0.6211357,3360.4,3359.9,2.97624]
[1721052964394,0.6211357,3360.4,3359.7,2.97643]
[1721052964594,0.50785893,3360.3,3359.8,5.97635]
[1721052965192,1.12899463,3360.3,3359.9,2.97626]
[1721052965391,0.50785893,3360.3,3359.9,2.97626]
[1721052965907,0.50785893,3360.3,3359.8,3.0]
[1721052966073,1.12899463,3360.3,3359.8,3.0]
[1721052966417,1.17261507,3360.2,3359.7,5.97643]
[1721052966591,0.55,3360.2,3359.7,5.97643]
[1721052966759,1.17261507,3360.2,3359.7,5.97643]
[1721052967210,0.62261507,3360.1,3359.7,5.97643]
[1721052968206,0.62261507,3360.1,3359.8,2.97634]
[1721052968774,0.62261507,3360.0,3359.7,3.0]
[1721052969187,0.62261507,3359.9,3359.7,3.132]
[1721052969515,10.42831856,3359.8,3359.7,0.132]
[1721052969661,10.53514292,3359.8,3359.7,0.132]
[1721052969862,10.95746993,3359.8,3359.7,0.132]
[1721052970062,7.55878292,3359.8,3359.7,0.132]
[1721052970568,9.11693391,3359.8,3359.7,0.132]
[1721052970768,2.11072292,3359.8,3359.7,0.132]
[1721052970978,1.40506915,3359.8,3359.7,0.132]
[1721052971284,2.23336162,3359.8,3359.7,0.132]
[1721052971488,2.23315509,3359.8,3359.7,0.132]
[1721052971800,1.40491935,3359.8,3359.7,0.132]
[1721052972691,0.10665275,3359.8,3359.7,0.132]
[1721052972986,1.40493453,3359.8,3359.7,0.132]
[1721052973198,1.4049338,3359.8,3359.7,0.132]
[1721052973677,0.93449253,3359.8,3359.7,0.132]
[1721052974103,1.60592878,3359.8,3359.7,0.132]
[1721052974291,2.07637207,3359.8,3359.7,0.132]
[1721052975210,1.60581819,3359.8,3359.7,0.132]
[1721052976094,2.0763429,3359.8,3359.7,0.132]
[1721052976294,1.60570487,3359.8,3359.7,0.132]
[1721052976489,0.93426862,3359.8,3359.7,0.132]
[1721052976793,0.93426862,3359.9,3359.7,0.132]
[1721052977007,0.62281825,3359.8,3359.7,0.132]
[1721052979087,0.62281825,3359.9,3359.8,2.97636]
[1721052979522,0.62281825,3360.0,3359.8,2.97636]
[1721052979724,0.62281825,3360.0,3359.7,0.132]
[1721052979725,0.62281825,3359.9,3359.7,3.10843]
[1721052981436,0.90313893,3359.9,3359.7,0.132]
[1721052981630,0.62281825,3359.8,3359.7,0.132]
[1721052983936,0.90313893,3359.9,3359.7,0.132]
[1721052984137,0.62281825,3359.9,3359.7,0.132]
[1721052985336,0.62281825,3359.8,3359.7,0.132]
[1721052986461,0.62281825,3359.9,3359.8,5.95272]
[1721052986622,0.62281825,3359.9,3359.7,2.455]
[1721052986623,0.62281825,3360.5,3360.4,5.95166]
[1721052986821,0.62281825,3361.0,3360.9,2.97539]
[1721052987059,0.62281825,3361.1,3360.9,2.97539]
[1721052987269,0.62281825,3361.0,3360.9,2.97539]
[1721052987625,0.93426862,3361.0,3360.9,2.97539]
[1721052987826,0.93426862,3361.1,3360.9,2.97539]
[1721052988050,0.93426862,3361.0,3360.7,2.97554]
[1721052988234,0.62275311,3360.8,3360.7,2.97554]
[1721052989240,0.62275311,3360.8,3360.5,2.97571]
[1721052989566,0.93426862,3361.0,3360.5,2.97571]
[1721052989567,0.62275311,3360.7,3360.6,2.97565]
[1721052989939,0.62275311,3360.7,3360.5,2.97571]
[1721052990329,0.62275311,3360.6,3360.5,2.97571]
[1721052990634,0.62275311,3360.8,3360.7,2.97557]
[1721052990831,0.62275311,3360.9,3360.7,2.97557]
[1721052991029,1.24611997,3361.2,3361.1,2.97521]
[1721052991030,0.62275311,3361.2,3361.1,2.97521]
[1721052991230,0.62275311,3361.3,3361.1,2.97521]
[1721052991434,0.62275311,3361.4,3361.2,2.97512]
[1721052991760,0.62275311,3361.7,3361.0,2.606]
[1721052991956,0.62275311,3362.0,3361.8,2.97459]
[1721052993648,0.47275311,3362.1,3361.8,2.97459]